bitfinex-derivatives/quotes_BNBF0:USTF0_20251002
["timestamp","ask_amount","ask_price","bid_price","bid_amount"]
[1759394474396,1.29637964,1035.5,1035.2,1.89592507]
[1759394474598,0.86499574,1035.3,1035.2,1.89592507]
[1759394478394,0.86499574,1035.3,1035.1,1.217]
[1759394479400,0.86499574,1035.3,1035.1,3.15093795]
[1759394481700,1.29637964,1035.5,1035.1,3.15093795]
[1759394481701,0.86499574,1035.2,1035.1,3.15093795]
[1759394482200,0.86499574,1035.4,1035.1,3.15093795]
[1759394485601,0.86499574,1035.3,1035.1,3.15093795]
[1759394485904,0.86499574,1035.4,1035.1,3.15093795]
[1759394486403,0.86499574,1035.3,1035.1,3.15093795]
[1759394489306,0.86499574,1035.4,1035.1,3.15093795]
[1759394490401,0.86499574,1035.5,1035.1,3.15093795]
[1759394491205,0.86499574,1035.4,1035.1,3.15093795]
[1759394494407,0.86499574,1035.9,1035.1,3.15093795]
[1759394494607,0.86499574,1035.7,1035.1,3.15093795]
[1759394495504,0.86499574,1035.6,1035.1,3.15093795]
[1759394495905,0.86499574,1035.5,1035.1,3.15093795]
[1759394497207,0.86499574,1035.4,1035.1,3.15093795]
[1759394502914,0.86499574,1035.4,1035.1,1.93393795]
[1759394505613,0.86499574,1035.5,1035.1,1.93393795]
[1759394506110,0.86499574,1035.5,1035.1,3.27793795]
[1759394506716,0.86499574,1035.6,1035.1,3.27793795]
[1759394509216,0.86499574,1035.7,1035.1,3.27793795]
[1759394509414,0.86499574,1035.6,1035.1,3.27793795]
[1759394511722,0.86499574,1035.7,1035.1,3.27793795]
[1759394517638,0.86499574,1035.7,1035.2,1.225]
[1759394517833,0.86499574,1035.7,1035.2,1.229]
[1759394518333,0.86499574,1035.8,1035.2,1.229]
[1759394518940,0.86499574,1035.8,1035.3,1.583]
[1759394519234,0.86499574,1035.8,1035.4,1.91879887]
[1759394526240,0.86499574,1035.7,1035.4,1.91879887]
[1759394526936,0.86499574,1035.6,1035.4,1.91879887]
[1759394533044,0.86499574,1035.5,1035.4,1.91879887]
[1759394533341,0.86499574,1035.6,1035.4,1.91879887]
[1759394533640,0.86499574,1035.5,1035.4,1.91879887]
[1759394544552,0.86499574,1035.5,1035.1,2.784]
[1759394545449,0.86499574,1035.5,1035.2,1.89685849]
[1759394547753,0.86499574,1035.4,1035.2,1.89685849]
[1759394551652,0.86499574,1035.3,1035.2,1.89685849]
[1759394560562,1.29637964,1035.5,1035.2,1.89685849]
[1759394561655,0.86347364,1035.3,1035.2,1.89685849]
[1759394563261,1.46449842,1035.4,1035.2,1.89685849]
[1759394563961,0.16811878,1035.4,1035.2,1.89685849]
[1759394565163,0.86313613,1035.3,1035.2,1.89685849]
[1759394566562,0.16811878,1035.4,1035.2,1.89685849]
[1759394566563,1.03125491,1035.4,1035.2,1.89685849]
[1759394574070,0.86313613,1035.4,1035.2,1.89685849]
[1759394580870,0.86313613,1035.5,1035.2,1.89685849]
[1759394581070,0.86313613,1035.4,1035.2,1.89685849]
[1759394581274,0.86313613,1035.5,1035.2,1.89685849]
[1759394583473,0.86313613,1035.4,1035.2,1.89685849]
[1759394587178,0.86313613,1035.5,1035.2,1.89685849]
[1759394590177,1.03123055,1035.6,1035.2,1.89685849]
[1759394591584,0.86313613,1035.5,1035.2,1.89685849]
[1759394599190,0.86313613,1035.6,1035.2,1.89685849]
[1759394601791,0.86313613,1035.7,1035.2,1.89685849]
[1759394602488,0.86313613,1035.7,1035.3,1.09]
[1759394605496,1.03121188,1035.8,1035.3,1.09]
[1759394605693,0.86313613,1035.7,1035.3,1.09]
[1759394606097,1.03121188,1035.8,1035.3,1.09]
[1759394607995,0.16807575,1035.8,1035.3,1.09]
[1759394614399,0.16807575,1035.8,1035.5,1.94125149]
[1759394622209,1.03164878,1035.8,1035.5,1.94125149]
[1759394623510,0.16807575,1035.8,1035.5,1.94125149]
[1759394632416,1.03188623,1035.8,1035.5,1.94125149]
[1759394633320,0.86381048,1035.7,1035.5,1.94125149]
[1759394634319,0.16807575,1035.8,1035.5,1.94125149]
[1759394641026,1.03188623,1035.8,1035.5,1.94125149]
[1759394641328,0.86381048,1035.7,1035.5,1.94125149]
[1759394641521,0.86381048,1035.6,1035.5,1.94125149]
[1759394641725,1.29571573,1035.7,1035.5,1.94125149]
[1759394646731,0.16807575,1035.8,1035.5,1.94125149]
[1759394651427,1.2977626,1035.7,1035.5,1.94125149]
[1759394652030,1.46583835,1035.8,1035.5,1.94125149]
[1759394653929,1.2977626,1035.6,1035.5,1.94125149]
[1759394654133,0.16807575,1035.8,1035.4,1.006]
[1759394654331,1.29736371,1035.5,1035.4,1.006]
[1759394655330,0.16807575,1035.8,1035.4,1.006]
[1759394657835,1.29596482,1035.6,1035.4,1.006]
[1759394658035,2.1636958,1035.7,1035.3,0.00850801]
[1759394658633,0.16807575,1035.8,1035.3,0.00850801]
[1759394659947,1.29497181,1035.4,1035.3,0.00850801]
[1759394662644,1.29497181,1035.5,1035.3,0.00850801]
[1759394664845,0.86312454,1035.6,1035.3,0.00850801]
[1759394668650,0.16807575,1035.8,1035.3,0.00850801]
[1759394672153,1.03120029,1035.8,1035.3,0.00850801]
[1759394672453,0.86312454,1035.7,1035.3,0.00850801]
[1759394673552,0.86312454,1035.6,1035.3,0.00850801]
[1759394678158,0.86312454,1035.7,1035.3,0.00850801]
[1759394679759,1.03120029,1035.8,1035.3,0.00850801]
[1759394680158,0.86312454,1035.7,1035.3,0.00850801]
[1759394680362,0.16807575,1035.8,1035.3,0.00850801]
[1759394680761,0.16807575,1035.8,1035.0,1.9448889]
[1759394684562,1.03120029,1035.8,1035.0,1.9448889]
[1759394687761,0.86312454,1035.7,1035.0,1.9448889]
[1759394688964,0.86312454,1035.5,1035.0,1.9448889]
[1759394691768,0.86312454,1035.6,1035.0,1.9448889]
[1759394692268,0.86312454,1035.7,1035.0,1.9448889]
[1759394693070,0.86312454,1035.6,1035.0,1.9448889]
[1759394693268,0.86312454,1035.7,1035.0,1.9448889]
[1759394693466,0.86312454,1035.6,1035.0,1.9448889]
[1759394695068,0.86312454,1035.5,1035.0,1.9448889]
[1759394696269,0.86312454,1035.6,1035.0,1.9448889]
[1759394699573,0.86312454,1035.7,1035.0,1.9448889]
[1759394702485,0.86312454,1035.6,1035.0,1.9448889]
[1759394702875,0.86312454,1035.7,1035.0,1.9448889]
[1759394703574,0.16807575,1035.8,1035.0,1.9448889]
[1759394708085,0.16807575,1035.8,1035.1,1.67]
[1759394708783,1.03120029,1035.8,1035.1,1.67]
[1759394714791,0.86312454,1035.7,1035.1,1.67]
[1759394716591,1.03120029,1035.8,1035.1,1.67]
[1759394716796,0.86312454,1035.7,1035.1,1.67]
[1759394716995,1.03120029,1035.8,1035.1,1.67]
[1759394718393,0.86312454,1035.7,1035.1,1.67]
[1759394720397,0.16807575,1035.8,1035.1,1.67]
[1759394720697,1.03120029,1035.8,1035.1,1.67]
[1759394724798,0.86312454,1035.6,1035.1,1.67]
[1759394725393,0.86312454,1035.5,1035.1,1.67]
[1759394725595,0.86312454,1035.6,1035.1,1.67]
[1759394726899,1.03120029,1035.8,1035.1,1.67]
[1759394727099,0.16807575,1035.8,1035.1,1.67]
[1759394727299,0.86312454,1035.7,1035.1,1.67]
[1759394728907,1.03120029,1035.8,1035.1,1.67]
[1759394730409,0.86312454,1035.7,1035.1,1.67]
[1759394731512,0.16807575,1035.8,1035.1,1.67]
[1759394732811,1.03120029,1035.8,1035.1,1.67]
[1759394733210,0.16807575,1035.8,1035.1,1.67]
[1759394734014,1.03120029,1035.8,1035.1,1.67]
[1759394734714,0.86312454,1035.5,1035.1,1.67]
[1759394740419,0.86312454,1035.6,1035.1,1.67]
[1759394741816,0.86312454,1035.7,1035.1,1.67]
[1759394743421,0.86312454,1035.7,1035.2,1.247]
[1759394743622,0.86312454,1035.7,1035.3,1.85619217]
[1759394743817,0.86312454,1035.7,1035.3,1.86019217]
[1759394744620,1.03120029,1035.8,1035.3,1.86019217]
[1759394744820,0.86312454,1035.7,1035.3,1.86019217]
[1759394746122,1.03120029,1035.8,1035.3,1.86019217]
[1759394746324,0.86312454,1035.8,1035.3,1.86019217]
[1759394751629,0.86312454,1035.9,1035.3,1.86019217]
[1759394752129,0.86312454,1035.8,1035.3,1.86019217]
[1759394752330,0.86312454,1035.9,1035.3,1.86019217]
[1759394752531,1.03116133,1036.0,1035.3,1.86019217]
[1759394757436,0.16803679,1036.0,1035.3,1.86019217]
[1759394757736,0.86312454,1036.0,1035.3,1.86019217]
[1759394758533,0.86312454,1036.1,1035.3,1.86019217]
[1759394761039,0.86312454,1036.1,1035.4,1.47]
[1759394761234,1.03113659,1036.2,1035.4,1.47]
[1759394761438,0.16801205,1036.2,1035.4,1.47]
[1759394766651,0.16801205,1036.2,1035.5,1.214]
[1759394766842,0.16801205,1036.2,1035.6,1.86898218]
[1759394767041,0.16801205,1036.2,1035.6,1.87298218]
[1759394769242,0.86312454,1036.4,1035.6,1.87298218]
[1759394769441,1.03109483,1036.4,1035.6,1.87298218]
[1759394769638,0.16797029,1036.4,1035.6,1.87298218]
[1759394780847,0.16797029,1036.4,1035.7,1.056]
[1759394790050,0.16797029,1036.4,1035.8,1.251]
[1759394790252,0.16797029,1036.4,1035.9,1.89883942]
[1759394790452,0.16797029,1036.4,1035.9,1.90283942]
[1759394795761,0.86312454,1036.7,1035.9,1.90283942]
[1759394795960,0.86312454,1036.9,1035.9,1.90283942]
[1759394796160,0.16792409,1036.7,1035.9,1.90283942]
[1759394804069,1.03104863,1036.7,1035.9,1.90283942]
[1759394804468,0.16792409,1036.7,1035.9,1.90283942]
[1759394804868,1.03104863,1036.7,1035.9,1.90283942]
[1759394805068,0.16792409,1036.7,1035.9,1.90283942]
[1759394806974,0.16792409,1036.7,1036.0,1.035]
[1759394810275,0.86312454,1037.0,1036.0,1.035]
[1759394810475,0.16788804,1036.9,1036.0,1.035]
[1759394811972,0.86312454,1037.2,1036.0,1.035]
[1759394812178,0.16787224,1037.0,1036.0,1.035]
[1759394815077,0.16787224,1037.0,1036.1,1.515]
[1759394815281,0.16787224,1037.0,1036.2,1.91897941]
[1759394815581,0.16787224,1037.0,1036.2,1.92297941]
[1759394830692,0.16787224,1037.0,1036.3,1.48]
[1759394835191,0.16787224,1037.0,1036.5,1.90093306]
[1759394835392,0.16787224,1037.0,1036.5,1.90493306]
[1759394841409,0.16787224,1037.0,1036.5,2.92793306]
[1759394846107,1.03099678,1037.0,1036.5,2.92793306]
[1759394846310,0.86312454,1036.9,1036.5,2.92793306]
[1759394847811,0.86312454,1036.8,1036.5,2.92793306]
[1759394848311,0.86312454,1036.7,1036.5,2.92793306]
[1759394849513,0.86312454,1036.9,1036.5,2.92793306]
[1759394850711,0.86312454,1036.9,1036.5,2.92393306]
[1759394852209,0.86312454,1036.8,1036.5,2.92393306]
[1759394852410,0.86312454,1036.7,1036.5,2.92393306]
[1759394852615,0.86312454,1036.6,1036.5,2.92393306]
[1759394853417,1.29497181,1036.8,1036.5,2.92393306]
[1759394853716,0.86075,1036.6,1036.5,2.92393306]
[1759394853915,0.86075,1036.7,1036.5,2.92393306]
[1759394856419,0.86075,1036.7,1036.5,1.023]
[1759394859219,0.86075,1036.8,1036.5,1.023]
[1759394859419,0.86075,1036.7,1036.5,1.023]
[1759394861921,0.86075,1036.6,1036.5,1.023]
[1759394862520,1.29497181,1036.8,1036.5,1.023]
[1759394863418,1.29497181,1036.7,1036.5,1.023]
[1759394866221,1.29497181,1036.6,1036.5,1.023]
[1759394866721,1.29497181,1036.7,1036.5,1.023]
[1759394871917,0.16787224,1037.0,1036.5,1.023]
[1759394872319,0.16787224,1037.0,1036.5,0.01324045]
[1759394875722,0.85733878,1036.6,1036.5,0.01324045]
[1759394877126,1.28563443,1036.8,1036.5,0.01324045]
[1759394877928,1.28563443,1036.7,1036.5,0.01324045]
[1759394879326,1.28563443,1036.8,1036.5,0.01324045]
[1759394879625,1.28563443,1036.7,1036.5,0.01324045]
[1759394880229,0.85735664,1036.6,1036.5,0.01324045]
[1759394880426,1.28563443,1036.7,1036.5,0.01324045]
[1759394881127,0.16787224,1037.0,1036.5,0.01324045]
[1759394882330,0.16787224,1037.0,1036.5,0.00044981]
[1759394894131,0.16787224,1037.0,1036.1,2.414]
[1759394894331,0.8581533,1036.2,1036.1,2.414]
[1759394898432,0.8581533,1036.2,1036.1,4.04699452]
[1759394899036,0.8581533,1036.2,1036.1,2.84899452]
[1759394901539,0.8581533,1036.3,1036.1,2.84899452]
[1759394901933,0.8581533,1036.5,1036.1,2.84899452]
[1759394902439,0.8581533,1036.4,1036.1,2.84899452]
[1759394905439,0.8581533,1036.3,1036.1,2.84899452]
[1759394905637,0.8581533,1036.3,1036.1,1.63299452]
[1759394907339,0.8581533,1036.2,1036.1,1.63299452]
[1759394911142,1.28722995,1036.3,1036.1,1.63299452]
[1759394912943,1.28722995,1036.2,1035.8,2.566]
[1759394913140,0.86222648,1036.0,1035.8,2.566]
[1759394913443,0.86222648,1036.1,1035.9,1.64350203]
[1759394913639,0.86222648,1036.0,1035.9,1.64750203]
[1759394916240,1.28722995,1036.0,1035.9,1.64750203]
[1759394918145,2.1636958,1036.7,1035.9,1.64750203]
[1759394919945,1.29319946,1036.0,1035.9,1.64750203]
[1759394920147,1.29319946,1036.1,1035.9,1.64750203]
[1759394921844,0.86201148,1036.0,1035.9,1.64750203]
[1759394923144,0.86201148,1036.1,1035.9,1.64750203]
[1759394926146,0.86201148,1036.2,1035.9,1.64750203]
[1759394926350,0.86201148,1036.1,1035.9,1.64750203]
[1759394932157,1.29319946,1036.0,1035.9,1.64750203]
[1759394933952,1.29319946,1036.1,1035.9,1.64750203]
[1759394934156,0.86122097,1036.0,1035.9,1.64750203]
[1759394935354,1.29319946,1036.2,1035.8,2.566]
[1759394935555,0.86108284,1035.9,1035.8,2.566]
[1759394937258,0.86108284,1036.0,1035.8,2.566]
[1759394939766,0.86108284,1035.9,1035.8,2.566]
[1759394941166,0.86108284,1036.0,1035.8,2.566]
[1759394941464,0.86108284,1036.0,1035.8,1.039]
[1759394941865,0.86108284,1035.9,1035.8,1.039]
[1759394943168,1.29319946,1036.2,1035.8,1.039]
[1759394943169,0.86108284,1036.0,1035.8,1.039]
[1759394943670,0.86108284,1035.9,1035.8,1.039]
[1759394943966,1.29319946,1036.0,1035.8,1.039]
[1759394944370,0.86111322,1035.9,1035.8,1.039]
[1759394944566,0.86111322,1035.9,1035.7,1.57286734]
[1759394946070,0.86111322,1035.8,1035.7,1.57286734]
[1759394946971,0.86111322,1035.9,1035.7,1.57286734]
[1759394952679,0.86111322,1036.0,1035.7,1.57286734]
[1759394953479,0.86111322,1035.9,1035.7,1.57286734]
[1759394954781,0.86111322,1036.0,1035.7,1.57286734]
[1759394958378,0.86111322,1035.9,1035.7,1.57286734]
[1759394959980,0.86111322,1036.2,1035.7,1.57286734]
[1759394960682,0.16787224,1037.0,1035.5,1.547]
[1759394960683,0.86111322,1036.1,1035.5,1.547]
[1759394961487,0.86111322,1036.1,1035.6,1.54600546]
[1759394961685,0.86111322,1036.1,1035.6,1.55000546]
[1759394961883,0.86111322,1036.0,1035.6,1.55000546]
[1759394962283,1.29319946,1035.7,1035.6,1.55000546]
[1759394963589,0.86108104,1035.8,1035.6,1.55000546]
[1759394969596,0.86108104,1035.9,1035.6,1.55000546]
[1759394969892,0.86108104,1035.8,1035.5,1.547]
[1759394970093,0.86108104,1035.7,1035.5,1.547]
[1759394970296,0.86108104,1035.7,1035.4,1.503]
[1759394970496,0.86108104,1035.7,1035.4,2.97323683]
[1759394971897,0.86108104,1035.8,1035.4,2.97323683]
[1759394972995,0.86108104,1035.8,1035.4,4.55623683]
[1759394974498,0.86108104,1036.0,1035.4,4.55623683]
[1759394974699,0.86108104,1036.1,1035.4,4.55623683]
[1759394978001,0.86108104,1036.0,1035.4,4.55623683]
[1759394978403,0.86108104,1035.7,1035.4,4.55623683]
[1759394979899,0.86108104,1035.8,1035.4,4.55623683]
[1759394981498,0.86108104,1035.9,1035.4,4.55623683]
[1759394982104,0.86108104,1035.8,1035.4,4.55623683]
[1759394985605,0.86108104,1036.0,1035.4,4.55623683]
[1759394985905,0.86108104,1036.0,1035.4,3.05323683]
[1759394986303,0.86108104,1035.9,1035.4,3.05323683]
[1759394986601,0.86108104,1036.0,1035.4,3.05323683]
[1759394987506,0.86108104,1036.0,1035.5,1.471]
[1759394987704,0.86108104,1036.0,1035.5,1.475]
[1759394991409,0.86108104,1036.1,1035.5,1.475]
[1759394992411,0.86108104,1036.2,1035.5,1.475]
[1759394993010,0.86108104,1036.1,1035.5,1.475]
[1759394993213,0.86108104,1036.2,1035.5,1.475]
[1759394998114,0.86108104,1036.1,1035.5,1.475]
[1759394999515,0.86108104,1036.1,1035.6,1.083]
[1759394999817,0.86108104,1036.1,1035.7,1.37044164]
[1759395002817,0.86108104,1036.0,1035.7,1.37044164]
[1759395004517,0.86108104,1036.1,1035.7,1.37044164]
[1759395004918,0.86108104,1036.0,1035.7,1.37044164]
[1759395005424,0.86108104,1036.1,1035.7,1.37044164]
[1759395006522,0.86108104,1036.0,1035.7,1.37044164]
[1759395008829,0.86108104,1035.9,1035.7,1.37044164]
[1759395009630,0.86108104,1036.0,1035.7,1.37044164]
[1759395011932,0.86108104,1035.9,1035.7,1.37044164]
[1759395012534,1.02911946,1035.9,1035.7,1.37044164]
[1759395016738,1.46123788,1035.9,1035.7,1.37044164]
[1759395019239,0.16803842,1035.9,1035.7,1.37044164]
[1759395019440,1.46123788,1035.9,1035.7,1.37044164]
[1759395019840,0.16803842,1035.9,1035.7,1.37044164]
[1759395020437,0.86196487,1035.8,1035.7,1.37044164]
[1759395024744,1.03000329,1035.9,1035.4,2.909]
[1759395024941,1.29319946,1035.6,1035.4,2.909]
[1759395025139,1.29319946,1035.6,1035.4,1.326]
[1759395027438,0.16803842,1035.9,1035.4,1.326]
[1759395027439,1.29319946,1035.5,1035.4,1.326]
[1759395027938,1.29319946,1035.6,1035.4,1.326]
[1759395031445,1.29319946,1035.7,1035.4,1.326]
[1759395031947,1.29319946,1035.6,1035.4,1.326]
[1759395033150,1.29319946,1035.7,1035.4,1.326]
[1759395034350,0.85938595,1035.5,1035.4,1.326]
[1759395034647,1.29319946,1035.7,1035.4,1.326]
[1759395035751,1.29319946,1035.6,1035.4,1.326]
[1759395036253,1.29319946,1035.7,1035.4,1.326]
[1759395036747,1.29319946,1035.6,1035.4,1.326]
[1759395037247,0.85839131,1035.5,1035.4,1.326]
[1759395038452,0.85839131,1035.6,1035.4,1.326]
[1759395041956,0.85839131,1035.5,1035.4,1.326]
[1759395045059,1.29319946,1035.6,1035.4,1.326]
[1759395046056,1.29319946,1035.5,1035.4,1.326]
[1759395048958,1.29319946,1035.6,1035.4,1.326]
[1759395051956,1.29319946,1035.5,1035.4,1.326]
[1759395054257,1.29319946,1035.5,1035.2,1.36024543]
[1759395054455,0.85759924,1035.3,1035.2,1.36024543]
[1759395054762,0.85759924,1035.3,1035.1,1.285]
[1759395054962,0.85759924,1035.4,1035.1,1.285]
[1759395055260,0.85759924,1035.2,1035.1,1.285]
[1759395058261,0.85759924,1035.3,1035.1,1.285]
[1759395061959,0.85759924,1035.5,1035.1,1.285]
[1759395063664,0.85759924,1035.4,1035.1,1.285]
[1759395067468,0.85759924,1035.7,1035.1,1.285]
[1759395067667,0.85759924,1035.6,1035.1,1.285]
[1759395070165,0.85759924,1035.2,1035.1,1.285]
[1759395078675,0.85759924,1035.2,1035.0,1.34950864]
[1759395080979,0.85759924,1035.3,1035.0,1.34950864]
[1759395085083,0.85759924,1035.2,1035.0,1.34950864]
[1759395087487,0.85759924,1035.2,1034.9,1.508]
[1759395088388,0.85759924,1035.2,1034.9,2.85758243]
[1759395089482,0.85759924,1035.1,1034.9,2.85758243]
[1759395090791,0.85759924,1035.0,1034.9,2.85758243]
[1759395092594,0.85759924,1035.2,1034.9,1.508]
[1759395092898,0.85759924,1035.1,1034.9,1.508]
[1759395095098,0.85759924,1035.0,1034.9,1.508]
[1759395095701,1.29319946,1035.2,1034.9,1.508]
[1759395096199,0.8639239,1035.1,1034.9,1.508]
[1759395096398,0.8639239,1035.0,1034.9,1.508]
[1759395099207,0.8639239,1035.1,1034.9,1.508]
[1759395100307,0.8639239,1035.0,1034.9,1.508]
[1759395100606,0.16803842,1035.9,1034.9,1.508]
[1759395101003,2.1636958,1035.6,1034.9,1.508]
[1759395101405,2.1636958,1035.7,1034.9,1.508]
[1759395101805,1.29355823,1035.0,1034.9,1.508]
[1759395102010,2.1636958,1035.6,1034.9,1.508]
[1759395102610,1.29340403,1035.2,1034.9,1.508]
[1759395103607,1.29340403,1035.2,1034.6,3.80880535]
[1759395103912,0.86212716,1034.9,1034.6,3.80880535]
[1759395108416,0.86212716,1034.8,1034.6,3.80880535]
[1759395108620,0.86212716,1034.7,1034.6,3.80880535]
[1759395108916,0.86212716,1034.8,1034.6,3.80880535]
[1759395109216,0.86212716,1034.7,1034.6,3.80880535]
[1759395112119,0.86212716,1034.9,1034.6,3.80880535]
[1759395115723,0.86212716,1035.1,1034.6,3.80880535]
[1759395122029,0.86212716,1035.0,1034.6,3.80880535]
[1759395123330,0.86212716,1034.9,1034.6,3.80880535]
[1759395125031,0.86212716,1034.8,1034.6,3.80880535]
[1759395127638,0.86212716,1034.9,1034.6,2.45680535]
[1759395128035,0.86212716,1035.0,1034.6,2.45680535]
[1759395129733,0.86212716,1034.9,1034.6,2.45680535]
[1759395130435,0.86212716,1034.9,1034.6,1.43280535]
[1759395132038,0.86212716,1035.0,1034.6,1.43280535]
[1759395134540,0.86212716,1034.9,1034.6,1.43280535]
[1759395135438,0.86212716,1034.9,1034.5,2.648]
[1759395136343,0.86212716,1034.9,1034.6,1.38872202]
[1759395140350,0.86212716,1034.8,1034.6,1.38872202]
[1759395142748,0.86212716,1034.7,1034.6,1.38872202]
[1759395146751,1.29340403,1034.8,1034.6,1.38872202]
[1759395148654,1.29340403,1034.8,1034.5,1.309]
[1759395148855,0.86118399,1034.6,1034.5,1.309]
[1759395152155,0.86118399,1034.7,1034.5,1.309]
[1759395153358,0.86118399,1034.6,1034.5,1.309]
[1759395156362,1.29340403,1034.7,1034.5,1.309]
[1759395156562,0.86164105,1034.6,1034.5,1.309]
[1759395157161,1.29340403,1034.7,1034.5,1.309]
[1759395157366,0.86168492,1034.6,1034.5,1.309]
[1759395157662,0.16803842,1035.9,1034.5,1.309]
[1759395157663,0.86168492,1034.9,1034.5,1.309]
[1759395158265,0.53257006,1034.8,1034.5,1.309]
[1759395158560,0.53257006,1034.7,1034.5,1.309]
[1759395158766,0.53257006,1034.6,1034.5,1.309]
[1759395162365,0.53257006,1034.6,1034.4,3.92445476]
[1759395162665,0.53257006,1034.5,1034.4,3.92445476]
[1759395166469,0.86168492,1035.0,1034.4,3.92445476]
[1759395166768,0.53231072,1034.9,1034.4,3.92445476]
[1759395166972,0.53231072,1034.8,1034.4,3.92445476]
[1759395167166,0.53231072,1034.7,1034.4,3.92445476]
[1759395167370,0.53231072,1034.6,1034.4,3.92445476]
[1759395167567,0.53231072,1034.5,1034.4,3.92445476]
[1759395170175,1.39399564,1034.5,1034.4,3.92445476]
[1759395170374,0.53231072,1034.5,1034.4,3.92445476]
[1759395176178,0.53231072,1034.5,1034.4,2.90745476]
[1759395176879,0.532182,1034.5,1034.4,2.90745476]
[1759395187891,0.532182,1034.5,1034.4,1.38145476]
[1759395213710,1.39386692,1034.5,1034.4,1.38145476]
[1759395215913,0.532182,1034.5,1034.4,1.38145476]
[1759395216311,0.532182,1034.5,1034.1,3.957]
[1759395216614,0.532182,1034.4,1034.1,3.957]
[1759395216913,0.532182,1034.3,1034.2,1.3082746]
[1759395217114,0.532182,1034.3,1034.2,1.3122746]
[1759395219011,0.16823419,1034.6,1034.2,1.3122746]
[1759395220812,0.16823419,1034.6,1034.2,2.6402746]
[1759395221616,1.02991911,1034.6,1034.2,2.6402746]
[1759395223611,0.86168492,1034.5,1034.2,2.6402746]
[1759395224512,0.86168492,1034.4,1034.2,2.6402746]
[1759395227914,0.86168492,1034.5,1034.2,2.6402746]
[1759395229917,0.86168492,1034.4,1034.2,2.6402746]
[1759395230617,0.86168492,1034.5,1034.2,2.6402746]
[1759395230917,0.86168492,1034.4,1034.2,2.6402746]
[1759395231317,0.86168492,1034.5,1034.2,2.6402746]
[1759395231714,0.86168492,1034.4,1034.2,2.6402746]
[1759395232814,0.86168492,1034.5,1034.2,2.6402746]
[1759395237722,0.86168492,1034.4,1034.2,2.6402746]
[1759395242026,0.86168492,1034.3,1034.2,2.6402746]
[1759395245322,0.86168492,1034.4,1034.2,2.6402746]
[1759395247422,0.86168492,1034.3,1034.2,2.6402746]
[1759395247926,0.86168492,1034.4,1034.2,2.6402746]
[1759395249028,0.53219469,1034.3,1034.2,2.6402746]
[1759395251929,0.53219469,1034.3,1034.2,1.3122746]
[1759395258430,0.52419469,1034.3,1034.2,1.3122746]
[1759395258634,0.50819469,1034.3,1034.2,1.3122746]
[1759395258929,0.16822769,1034.9,1034.2,1.3122746]
[1759395266436,0.86168492,1035.0,1034.2,1.3122746]
[1759395266437,0.85368492,1035.0,1034.2,1.3122746]
[1759395266640,10.38574,1040.2,1034.2,1.3122746]
[1759395266641,1.29340403,1035.9,1034.2,1.3122746]
[1759395266936,0.16815453,1035.5,1034.2,1.3122746]
[1759395286857,0.16815453,1035.5,1034.3,1.145]
[1759395288756,0.16815453,1035.5,1034.4,1.469]
[1759395288956,0.16815453,1035.5,1034.5,1.17863993]
[1759395289161,0.16815453,1035.5,1034.5,1.18263993]
[1759395297263,1.02300832,1035.5,1034.5,1.18263993]
[1759395298365,0.16815453,1035.5,1034.5,1.18263993]
[1759395301265,1.02300832,1035.5,1034.5,1.18263993]
[1759395301466,0.85485379,1035.3,1034.5,1.18263993]
[1759395303665,0.85485379,1035.3,1034.6,1.464]
[1759395305168,0.85485379,1035.2,1034.6,1.464]
[1759395309975,0.85485379,1035.1,1034.6,1.464]
[1759395312374,0.85485379,1035.2,1034.6,1.464]
[1759395313976,1.29340403,1035.4,1034.6,1.464]
[1759395313977,0.85485379,1035.1,1034.6,1.464]
[1759395314280,0.85485379,1035.0,1034.6,1.464]
[1759395315080,0.85485379,1035.1,1034.6,1.464]
[1759395316278,0.85485379,1035.0,1034.6,1.464]
[1759395323183,0.85485379,1035.1,1034.6,1.464]
[1759395324585,0.85485379,1035.2,1034.6,1.464]
[1759395326487,0.85485379,1035.3,1034.6,1.464]
[1759395327483,0.85485379,1035.4,1034.6,1.464]
[1759395330694,0.85485379,1035.4,1034.7,1.075]
[1759395330993,0.85485379,1035.4,1034.8,1.16814313]
[1759395331190,0.85485379,1035.4,1034.8,1.17214313]
[1759395332295,0.85485379,1035.2,1034.8,1.17214313]
[1759395336298,0.85485379,1035.1,1034.8,1.17214313]
[1759395337398,0.85485379,1035.0,1034.8,1.17214313]
[1759395340403,0.85485379,1034.9,1034.8,1.17214313]
[1759395342308,0.85485379,1035.0,1034.8,1.17214313]
[1759395342807,0.85485379,1035.1,1034.8,1.17214313]
[1759395346908,0.85485379,1035.3,1034.8,1.17214313]
[1759395347208,0.85485379,1035.2,1034.8,1.17214313]
[1759395349006,0.85485379,1035.3,1034.8,2.32814313]
[1759395349906,0.85485379,1035.3,1034.8,3.80314313]
[1759395350406,0.85485379,1035.2,1034.8,3.80314313]
[1759395353708,0.85485379,1035.0,1034.8,3.80314313]
[1759395355313,1.29340403,1035.3,1034.8,3.80314313]
[1759395355314,0.85485379,1035.1,1034.8,3.80314313]
[1759395356716,0.85485379,1035.2,1034.8,3.80314313]
[1759395361518,0.85485379,1035.1,1034.8,3.80314313]
[1759395361814,0.85485379,1035.3,1034.8,3.80314313]
[1759395362218,0.85485379,1035.2,1034.8,3.80314313]
[1759395366316,0.85485379,1035.3,1034.8,3.80314313]
[1759395368422,1.02298882,1035.3,1034.8,3.80314313]
[1759395371622,1.02298882,1035.3,1034.9,1.483]
[1759395372220,0.85485379,1035.2,1034.9,1.483]
[1759395376723,0.85485379,1035.1,1034.9,1.483]
[1759395377025,0.85485379,1035.2,1034.9,1.483]
[1759395378128,0.85485379,1035.1,1034.9,1.483]
[1759395380725,0.85485379,1035.0,1034.9,1.483]
[1759395381130,0.85485379,1035.1,1034.9,1.483]
[1759395382225,0.85485379,1035.2,1034.9,1.483]
[1759395383527,1.02298882,1035.3,1034.9,1.483]
[1759395389232,0.85485379,1035.2,1034.9,1.483]
[1759395392236,0.85485379,1035.1,1034.9,1.483]
[1759395393536,0.85485379,1035.0,1034.9,1.483]
[1759395393839,1.29340403,1035.1,1034.9,1.483]
[1759395395835,0.86104531,1035.0,1034.9,1.483]
[1759395396439,1.29340403,1035.0,1034.9,1.483]
[1759395397637,1.29340403,1035.1,1034.9,1.483]
[1759395397840,1.29340403,1035.0,1034.9,1.483]
[1759395402344,1.29340403,1035.1,1034.9,1.483]
[1759395405647,1.29340403,1035.1,1034.8,1.17214313]
[1759395405849,0.8606299,1034.9,1034.8,1.17214313]